bitfinex-derivatives/quotes_BTCF0:USTF0_20241003
["timestamp","ask_amount","ask_price","bid_price","bid_amount"]
[1727990800201,0.082149,60868.0,60867.0,0.06005899]
[1727990801996,0.083149,60868.0,60867.0,0.06005899]
[1727990802394,0.083149,60868.0,60867.0,0.12537632]
[1727990802594,0.084149,60868.0,60867.0,0.12537632]
[1727990803087,0.084149,60868.0,60867.0,0.06005899]
[1727990803898,0.084149,60868.0,60867.0,0.02565899]
[1727990804107,0.084149,60868.0,60865.0,0.06534885]
[1727990804601,0.082151,60866.0,60865.0,0.06534885]
[1727990805196,0.082156,60863.0,60861.0,0.1160673]
[1727990805597,0.12,60862.0,60861.0,0.14259431]
[1727990805907,0.12,60862.0,60861.0,0.24069035]
[1727990806305,0.12,60862.0,60861.0,0.15902305]
[1727990807102,0.121,60862.0,60861.0,0.15902305]
[1727990808197,0.204157,60862.0,60861.0,0.15902305]
[1727990808601,0.203157,60862.0,60861.0,0.15902305]
[1727990809103,0.204157,60862.0,60861.0,0.15902305]
[1727990809419,0.204157,60862.0,60861.0,0.06092701]
[1727990810991,0.204157,60862.0,60861.0,0.02652701]
[1727990811191,0.082161,60860.0,60858.0,0.0345]
[1727990811397,0.12,60859.0,60858.0,0.0345]
[1727990811708,0.202161,60859.0,60858.0,0.0345]
[1727990812901,0.203161,60859.0,60858.0,0.0345]
[1727990813105,0.204161,60859.0,60858.0,0.0345]
[1727990814901,0.204161,60859.0,60858.0,0.06041383]
[1727990816309,0.204161,60859.0,60858.0,0.24038862]
[1727990816507,0.204161,60859.0,60858.0,0.14227141]
[1727990816905,0.204161,60859.0,60858.0,0.06041383]
[1727990817500,0.204161,60859.0,60858.0,0.14227141]
[1727990818604,0.204161,60859.0,60858.0,0.06041383]
[1727990819011,0.204161,60859.0,60858.0,0.02591383]
[1727990819224,0.122,60859.0,60856.0,0.08185758]
[1727990819414,0.082163,60858.0,60856.0,0.08185758]
[1727990819917,0.082163,60857.0,60856.0,0.08185758]
[1727990820113,0.082163,60857.0,60856.0,0.18009304]
[1727990820314,0.082163,60857.0,60856.0,0.09823546]
[1727990820514,0.082163,60857.0,60856.0,0.20651099]
[1727990821012,0.082163,60857.0,60856.0,0.12468997]
[1727990821214,0.082163,60857.0,60856.0,0.20650928]
[1727990821915,0.082163,60857.0,60856.0,0.12468997]
[1727990822111,0.083163,60857.0,60856.0,0.12468997]
[1727990822311,0.084163,60857.0,60856.0,0.12468997]
[1727990824019,0.083163,60857.0,60856.0,0.12468997]
[1727990824213,0.083163,60857.0,60856.0,0.02645451]
[1727990824421,0.083163,60857.0,60854.0,0.44265581]
[1727990824712,0.083163,60857.0,60855.0,0.08185581]
[1727990825623,0.002,60857.0,60855.0,0.08185581]
[1727990826315,0.002,60857.0,60854.0,0.16402281]
[1727990827115,0.002,60857.0,60855.0,0.08185581]
[1727990828213,0.001,60857.0,60856.0,0.08185581]
[1727990828510,0.002,60857.0,60856.0,0.08185581]
[1727990828910,0.001,60857.0,60856.0,0.08185581]
[1727990829112,0.002,60857.0,60856.0,0.18089732]
[1727990829322,0.001,60857.0,60856.0,0.18089732]
[1727990829515,0.002,60857.0,60856.0,0.18089732]
[1727990830116,0.002,60857.0,60856.0,0.09904151]
[1727990831329,0.002,60857.0,60854.0,0.13132177]
[1727990832127,0.002,60857.0,60855.0,0.04915477]
[1727990832428,0.001,60857.0,60855.0,0.04915477]
[1727990832722,0.002,60857.0,60855.0,0.04915477]
[1727990833327,0.002,60857.0,60856.0,0.04915477]
[1727990834520,0.001,60857.0,60856.0,0.04915477]
[1727990834722,0.002,60857.0,60856.0,0.04915477]
[1727990835646,0.001,60857.0,60856.0,0.04915477]
[1727990835826,0.002,60857.0,60856.0,0.04915477]
[1727990839548,0.002,60857.0,60856.0,0.0991253]
[1727990840330,0.084163,60857.0,60856.0,0.0991253]
[1727990840533,0.084163,60857.0,60854.0,0.09754785]
[1727990840534,0.0719,60857.0,60854.0,0.08199479]
[1727990840833,0.082167,60854.0,60853.0,0.10851246]
[1727990841130,0.082169,60853.0,60852.0,0.08199479]
[1727990841533,0.12,60854.0,60851.0,0.08199479]
[1727990841828,0.0719,60857.0,60849.0,0.08199479]
[1727990841829,0.082172,60851.0,60849.0,0.08199479]
[1727990842333,0.082174,60849.0,60848.0,0.11108287]
[1727990842533,0.082174,60849.0,60848.0,0.02908808]
[1727990843028,0.202174,60849.0,60848.0,0.02908808]
[1727990843433,0.203174,60849.0,60848.0,0.02908808]
[1727990844135,0.204174,60849.0,60848.0,0.02908808]
[1727990844728,0.204174,60849.0,60848.0,0.02662321]
[1727990844923,0.204174,60849.0,60848.0,0.06556135]
[1727990845333,0.082177,60847.0,60846.0,0.06556135]
[1727990845532,0.202177,60847.0,60846.0,0.06556135]
[1727990845730,0.12,60847.0,60845.0,0.06556135]
[1727990845936,0.202178,60846.0,60845.0,0.06556135]
[1727990846435,0.202178,60846.0,60841.0,0.04914256]
[1727990846436,0.082184,60842.0,60841.0,0.04914256]
[1727990846637,0.12,60842.0,60840.0,0.02656557]
[1727990846827,0.12,60842.0,60836.0,0.00084]
[1727990846828,0.12,60842.0,60836.0,0.04914256]
[1727990847139,0.08219,60837.0,60836.0,0.02594849]
[1727990847330,0.08219,60837.0,60834.0,0.04914256]
[1727990847637,0.08219,60837.0,60834.0,0.13133556]
[1727990848140,0.08219,60837.0,60835.0,0.04914256]
[1727990848335,0.08219,60837.0,60834.0,0.13133556]
[1727990849450,0.08319,60837.0,60834.0,0.082193]
[1727990850231,0.08419,60837.0,60834.0,0.082193]
[1727990851329,0.002,60837.0,60833.0,0.0259169]
[1727990851536,0.3608,60853.0,60851.0,0.08217]
[1727990851739,0.3608,60853.0,60836.0,0.3608]
[1727990851740,0.3608,60853.0,60850.0,0.12]
[1727990852034,0.44297,60853.0,60848.0,0.082175]
[1727990852235,0.56297,60853.0,60849.0,0.0362]
[1727990852630,0.56297,60853.0,60850.0,1.5]
[1727990852850,0.56297,60853.0,60849.0,0.0362]
[1727990853031,0.3608,60853.0,60849.0,0.118374]
[1727990853227,0.3608,60858.0,60853.0,0.082168]
[1727990853439,0.082158,60861.0,60854.0,0.082167]
[1727990854432,0.00446565,60859.0,60856.0,0.18556135]
[1727990854742,0.00446565,60859.0,60857.0,0.06556135]
[1727990855042,0.00446565,60859.0,60858.0,0.06556135]
[1727990855234,0.00446565,60859.0,60858.0,0.3608]
[1727990855738,0.00446565,60859.0,60858.0,0.082162]
[1727990856143,0.00246565,60859.0,60858.0,0.16415679]
[1727990856445,0.00246565,60859.0,60858.0,0.16390508]
[1727990856833,0.00346565,60859.0,60858.0,0.16390508]
[1727990857742,0.00246565,60859.0,60858.0,0.16390508]
[1727990857943,0.00246565,60859.0,60858.0,0.16590508]
[1727990858140,0.00246565,60859.0,60858.0,0.085162]
[1727990858831,0.00246565,60859.0,60858.0,0.084162]
[1727990859138,0.00246565,60859.0,60858.0,0.085162]
[1727990859139,0.00346565,60859.0,60858.0,0.085162]
[1727990859332,0.00346565,60859.0,60858.0,0.083162]
[1727990859542,0.00346565,60859.0,60858.0,0.085162]
[1727990859960,0.00346565,60859.0,60858.0,0.1108354]
[1727990866649,0.00346565,60859.0,60858.0,0.0286734]
[1727990876455,0.08562665,60859.0,60858.0,0.07771601]
[1727990877364,0.00346565,60859.0,60858.0,0.0286734]
[1727990877960,0.00346565,60859.0,60858.0,0.07772702]
[1727990878459,0.00346565,60859.0,60858.0,0.0286734]
[1727990879251,0.00346565,60859.0,60858.0,0.09406355]
[1727990880561,0.00346565,60859.0,60858.0,0.0286734]
[1727990882158,0.00346565,60859.0,60858.0,0.0296734]
[1727990882459,0.00346565,60859.0,60858.0,0.21095868]
[1727990883265,0.00346565,60859.0,60858.0,0.1292156]
[1727990884361,0.00346565,60859.0,60858.0,0.0296734]
[1727990888053,0.00346565,60859.0,60858.0,0.09529304]
[1727990889567,0.00346565,60859.0,60858.0,0.0296734]
[1727990891456,0.00346565,60859.0,60858.0,0.12935326]
[1727990894173,0.00346565,60859.0,60858.0,0.21151526]
[1727990894375,0.00346565,60859.0,60858.0,0.1118354]
[1727990894674,0.00346565,60859.0,60858.0,0.21158266]
[1727990896564,0.00346565,60859.0,60858.0,0.1118354]
[1727990901977,0.001,60859.0,60858.0,0.17742548]
[1727990902273,0.001,60859.0,60858.0,0.1118354]
[1727990905278,0.001,60859.0,60858.0,0.17738501]
[1727990905573,0.001,60859.0,60858.0,0.1118354]
[1727990905781,0.001,60859.0,60858.0,0.17738477]
[1727990906784,0.001,60859.0,60858.0,0.29320745]
[1727990908080,0.001,60859.0,60858.0,0.19377211]
[1727990908379,0.001,60859.0,60858.0,0.1118354]
[1727990908969,0.001,60859.0,60858.0,0.2318354]
[1727990909166,0.001,60859.0,60858.0,0.31377211]
[1727990909369,0.001,60859.0,60858.0,0.41320786]
[1727990909587,0.001,60859.0,60858.0,0.31377211]
[1727990910176,0.001,60859.0,60858.0,0.41320298]
[1727990910879,0.001,60859.0,60858.0,0.31377211]
[1727990911187,0.001,60859.0,60858.0,0.19377211]
[1727990911368,0.001,60859.0,60858.0,0.41320114]
[1727990911874,0.001,60859.0,60858.0,0.41318375]
[1727990912871,0.001,60859.0,60858.0,0.31377211]
[1727990914177,0.001,60859.0,60858.0,0.2318354]
[1727990915181,0.001,60859.0,60858.0,0.1118354]
[1727990915382,0.001,60859.0,60858.0,0.2318354]
[1727990915982,0.001,60859.0,60858.0,0.31377211]
[1727990916182,0.001,60859.0,60858.0,0.2318354]
[1727990917184,0.001,60859.0,60858.0,0.31377211]
[1727990921285,0.001,60859.0,60858.0,0.41315954]
[1727990921687,0.001,60859.0,60858.0,0.31377211]
[1727990921892,0.001,60859.0,60858.0,0.2318354]
[1727990928896,0.001,60859.0,60858.0,0.19377211]
[1727990929097,0.001,60859.0,60858.0,0.2318354]
[1727990929597,0.001,60859.0,60858.0,0.41323432]
[1727990929898,0.001,60859.0,60858.0,0.331314]
[1727990930494,0.001,60859.0,60858.0,0.33166467]
[1727990934501,0.001,60859.0,60858.0,0.21166467]
[1727990935298,0.001,60859.0,60858.0,0.21169351]
[1727990936908,0.001,60859.0,60858.0,0.1118354]
[1727990943695,0.001,60859.0,60858.0,0.17738986]
[1727990943902,0.001,60859.0,60858.0,0.21993505]
[1727990944807,0.001,60859.0,60858.0,0.23993505]
[1727990948215,0.3608,60868.0,60858.0,0.15777305]
[1727990948405,0.3608,60868.0,60866.0,0.12]
[1727990948609,0.3608,60868.0,60867.0,0.10809965]
[1727990948810,0.3608,60868.0,60867.0,0.16809965]
[1727990949214,0.3618,60868.0,60867.0,0.16809965]
[1727990950118,0.3678,60868.0,60867.0,0.16809965]
[1727990950615,0.3618,60868.0,60867.0,0.16809965]
[1727990950803,0.3688,60868.0,60867.0,0.16909965]
[1727990951009,0.3708,60868.0,60867.0,0.16909965]
[1727990953114,0.3708,60868.0,60867.0,0.16893131]
[1727990953711,0.3708,60868.0,60867.0,0.19554351]
[1727990953913,0.01,60868.0,60867.0,0.19554351]
[1727990957921,0.01,60868.0,60867.0,0.19549373]
[1727990959023,0.01,60868.0,60867.0,0.0876122]
[1727990965918,0.01,60868.0,60867.0,0.19549012]
[1727990967521,0.01,60868.0,60867.0,0.19537817]
[1727990974134,0.01,60868.0,60867.0,0.0876122]
[1727990974536,0.01,60868.0,60867.0,0.15312384]
[1727990977636,0.01,60868.0,60867.0,0.0876122]
[1727990981143,0.01,60868.0,60867.0,0.19553865]
[1727990983134,0.01,60868.0,60867.0,0.29385954]
[1727990984542,0.01,60868.0,60867.0,0.19553865]
[1727990984845,0.01,60868.0,60867.0,0.19432314]
[1727990989236,0.01,60868.0,60867.0,0.08639669]
[1727990989941,0.01,60868.0,60867.0,0.20639669]
[1727990995944,0.01,60868.0,60867.0,0.56719669]
[1727990996145,0.01,60868.0,60867.0,0.67489174]
[1727991002050,0.3608,60891.0,60867.0,0.77322211]
[1727991002256,0.082127,60884.0,60883.0,0.16912253]
[1727991002555,0.0362,60886.0,60883.0,0.17912253]
[1727991002853,0.3608,60891.0,60883.0,0.212128]
[1727991003057,0.06256154,60896.0,60890.0,0.18544998]
[1727991003263,0.0362,60896.0,60895.0,0.12]
[1727991003452,0.0362,60896.0,60895.0,0.13]
[1727991004061,0.0362,60896.0,60895.0,0.12]
[1727991004254,0.0362,60896.0,60895.0,0.13]
[1727991005053,0.0362,60896.0,60895.0,0.14]
[1727991005552,0.0362,60896.0,60895.0,0.141]
[1727991005749,0.0502,60896.0,60895.0,0.142]
[1727991006752,0.411,60896.0,60895.0,0.142]
[1727991007768,0.0502,60896.0,60895.0,0.142]
[1727991007960,0.411,60896.0,60895.0,0.142]
[1727991010559,0.0502,60896.0,60895.0,0.142]
[1727991012257,0.0502,60896.0,60895.0,0.16843789]
[1727991018061,0.252311,60896.0,60895.0,0.002]
[1727991018469,0.78523446,60896.0,60895.0,0.002]
[1727991018655,0.082128,60883.0,60882.0,0.46012]
[1727991018859,0.082128,60883.0,60882.0,0.48577845]
[1727991019054,0.082128,60883.0,60882.0,0.53577845]
[1727991019365,0.082128,60883.0,60882.0,0.48577845]
[1727991020065,0.082128,60883.0,60882.0,0.46012]
[1727991020066,0.442928,60883.0,60882.0,0.46012]
[1727991020265,0.082149,60868.0,60866.0,0.04896084]
[1727991020461,0.12,60877.0,60867.0,0.20215]
[1727991020666,0.12,60877.0,60872.0,0.12]
[1727991020667,0.082142,60873.0,60872.0,0.12]
[1727991020863,0.082146,60870.0,60868.0,0.12]
[1727991021361,0.0675,60876.0,60868.0,0.12]
[1727991021564,0.082147,60869.0,60868.0,0.12]
[1727991024457,0.084147,60869.0,60868.0,0.12]
[1727991024659,0.089147,60869.0,60868.0,0.12]
[1727991025062,0.084147,60869.0,60868.0,0.12]
[1727991025266,0.089147,60869.0,60868.0,0.12]
[1727991028669,0.007,60869.0,60868.0,0.12]
[1727991029380,0.007,60869.0,60868.0,0.13]
[1727991030877,0.006,60869.0,60868.0,0.131]
[1727991031078,0.008,60869.0,60868.0,0.131]
[1727991031775,0.082143,60873.0,60868.0,0.13]
[1727991032074,0.001,60869.0,60868.0,0.13]
[1727991033972,0.082143,60873.0,60868.0,0.13]
[1727991034168,0.083142,60873.0,60872.0,0.12]
[1727991034376,0.083142,60873.0,60872.0,0.13]
[1727991034569,0.082142,60873.0,60872.0,0.13]
[1727991035284,0.088142,60873.0,60872.0,0.131]
[1727991037086,0.090142,60873.0,60872.0,0.131]
[1727991039188,0.090142,60873.0,60872.0,0.15765862]
[1727991040488,0.090142,60873.0,60872.0,0.14765862]
[1727991046702,0.090142,60873.0,60872.0,0.02765862]
[1727991049504,0.090142,60873.0,60872.0,0.1095295]
[1727991050392,0.084142,60873.0,60872.0,0.21638326]
[1727991050597,0.091142,60873.0,60872.0,0.21738326]
[1727991050890,0.092142,60873.0,60872.0,0.21738326]
[1727991051091,0.085142,60873.0,60872.0,0.21638326]
[1727991051299,0.091142,60873.0,60872.0,0.19072464]
[1727991051496,0.211142,60873.0,60872.0,0.08287088]
[1727991051797,0.211142,60873.0,60872.0,0.001]
[1727991052506,0.210142,60873.0,60872.0,0.001]
[1727991053014,0.082146,60870.0,60869.0,0.08187088]
[1727991053308,0.082146,60870.0,60869.0,0.18982884]
[1727991053515,0.082146,60870.0,60869.0,0.08187088]
[1727991054216,0.089146,60870.0,60869.0,0.08287088]
[1727991054717,0.092146,60870.0,60869.0,0.10941475]
[1727991055416,0.092146,60870.0,60869.0,0.02754387]
[1727991055816,0.092146,60870.0,60869.0,0.10941475]
[1727991056206,0.092146,60870.0,60869.0,0.02754387]
[1727991064323,0.092146,60870.0,60869.0,0.09309913]
[1727991065023,0.092146,60870.0,60869.0,0.02754387]
[1727991072423,0.092146,60870.0,60869.0,0.09309913]
[1727991072624,0.092146,60870.0,60869.0,0.02754387]
[1727991074936,0.452946,60870.0,60869.0,0.02754387]
[1727991076645,0.092146,60870.0,60869.0,0.02754387]
[1727991077026,0.452946,60870.0,60869.0,0.02754387]
[1727991077435,0.452946,60870.0,60869.0,0.09309913]
[1727991078844,0.092146,60870.0,60869.0,0.09309913]
[1727991079140,0.452946,60870.0,60869.0,0.09309913]
[1727991079338,0.49267141,60870.0,60869.0,0.02754387]
[1727991081026,0.13187141,60870.0,60869.0,0.02754387]
[1727991081231,0.49267141,60870.0,60869.0,0.02754387]
[1727991083739,0.13187141,60870.0,60869.0,0.02754387]
[1727991084037,0.49267141,60870.0,60869.0,0.02754387]
[1727991084928,0.13187141,60870.0,60869.0,0.02754387]
[1727991085438,0.49267141,60870.0,60869.0,0.02754387]
[1727991086243,0.13187141,60870.0,60869.0,0.02754387]
[1727991086441,0.092146,60870.0,60869.0,0.09309913]
[1727991087237,0.452946,60870.0,60869.0,0.09309913]
[1727991087631,0.092146,60870.0,60869.0,0.09309913]
[1727991087835,0.452946,60870.0,60869.0,0.09309913]
[1727991088639,0.452946,60870.0,60869.0,0.06655526]
[1727991088836,0.452946,60870.0,60869.0,0.001]
[1727991089240,0.572946,60870.0,60869.0,0.001]
[1727991089744,0.082155,60863.0,60862.0,0.04912514]
[1727991089940,0.082157,60862.0,60860.0,0.04912514]
[1727991090137,0.12,60861.0,60858.0,0.001]
[1727991090933,0.442961,60859.0,60858.0,0.001]
[1727991091949,1.45376,60859.0,60851.0,0.04912514]
[1727991092135,0.082172,60851.0,60850.0,0.02692351]
[1727991092335,0.082174,60849.0,60848.0,0.04912514]
[1727991092564,0.082177,60847.0,60846.0,0.04912514]
[1727991092935,0.082172,60851.0,60845.0,0.0337]
[1727991092936,0.082178,60846.0,60845.0,0.04912514]
[1727991093258,0.082178,60846.0,60838.0,0.42727526]
[1727991093259,0.082185,60841.0,60839.0,0.05159053]
[1727991093441,0.082186,60840.0,60839.0,0.05159053]
[1727991093639,0.076186,60840.0,60839.0,0.07856142]
[1727991093841,0.076186,60840.0,60839.0,0.02943628]
[1727991095145,0.076186,60840.0,60839.0,0.07841185]
[1727991095450,0.076186,60840.0,60839.0,0.02697089]
[1727991095647,0.08219,60837.0,60836.0,0.04897557]
[1727991096142,0.12,60838.0,60835.0,0.05936619]
[1727991096349,0.082192,60836.0,60835.0,0.05936619]
[1727991096743,0.202192,60836.0,60835.0,0.02566619]
[1727991096938,0.12,60836.0,60831.0,0.04897557]
[1727991097138,0.12,60833.0,60829.0,0.04897557]
[1727991097336,0.0822,60830.0,60827.0,1.62084]
[1727991097539,0.0822,60830.0,60827.0,1.62]
[1727991097941,0.0822,60830.0,60827.0,0.12]
[1727991098246,0.0822,60830.0,60827.0,0.202204]
[1727991098451,0.0832,60830.0,60827.0,0.202204]
[1727991098747,0.082203,60828.0,60827.0,0.02679813]
[1727991098948,0.082204,60827.0,60826.0,1.65604]
[1727991099143,0.082204,60827.0,60826.0,1.5352]
[1727991099347,0.002,60830.0,60822.0,0.3608]
[1727991099348,0.082209,60824.0,60822.0,0.3608]
[1727991099547,0.082209,60824.0,60822.0,0.38716378]
[1727991099745,0.082209,60824.0,60823.0,1.5]
[1727991101540,0.083209,60824.0,60823.0,1.5]
[1727991101746,0.084209,60824.0,60822.0,0.38716378]
[1727991102167,0.083209,60824.0,60822.0,0.38716378]
[1727991102368,0.084209,60824.0,60822.0,0.38716378]
[1727991102650,0.082199,60831.0,60828.0,0.082202]
[1727991102851,0.082199,60831.0,60830.0,0.12]
[1727991103445,0.12,60837.0,60826.0,0.082205]
[1727991103647,0.082201,60829.0,60827.0,0.12]
[1727991104954,0.082203,60828.0,60827.0,0.12]
[1727991105453,0.12,60828.0,60824.0,0.12]
[1727991105686,0.12,60828.0,60822.0,0.46937378]
[1727991105850,0.082208,60824.0,60822.0,0.38716378]
[1727991107847,0.084208,60824.0,60822.0,0.38716378]
[1727991108757,0.084208,60824.0,60822.0,0.02636378]
[1727991108956,0.084208,60824.0,60821.0,0.12]
[1727991110660,0.002,60824.0,60823.0,0.082209]
[1727991110859,0.442991,60837.0,60821.0,0.18555526]
[1727991111054,0.442991,60837.0,60833.0,0.12]
[1727991111758,0.3608,60837.0,60833.0,0.12]
[1727991112063,0.082194,60834.0,60828.0,0.04879751]
[1727991112251,0.3628,60837.0,60832.0,0.12]
[1727991112458,0.082192,60836.0,60833.0,0.0355]
[1727991113261,0.002,60834.0,60833.0,0.0355]
[1727991114661,0.082192,60836.0,60833.0,0.0355]
[1727991114662,0.083192,60836.0,60833.0,0.0355]
[1727991114866,0.084192,60836.0,60833.0,0.0355]
[1727991115564,0.001,60834.0,60833.0,0.0695]
[1727991115963,0.002,60834.0,60833.0,0.0695]
[1727991116266,0.001,60834.0,60833.0,0.151696]
[1727991116483,0.002,60836.0,60834.0,0.082194]
[1727991116766,0.002,60836.0,60835.0,0.12]
[1727991117862,0.082183,60843.0,60836.0,0.082192]
[1727991118058,0.082183,60843.0,60841.0,0.12]
[1727991119160,0.083183,60843.0,60841.0,0.12]
[1727991120170,0.083183,60843.0,60841.0,0.16891902]
[1727991120562,0.083183,60843.0,60842.0,0.04891902]
[1727991120767,0.001,60843.0,60842.0,0.13110302]
[1727991120968,0.001,60843.0,60842.0,0.082184]
[1727991121468,0.001,60843.0,60842.0,0.14737338]
[1727991121765,0.002,60843.0,60842.0,0.082184]
[1727991121962,0.002,60843.0,60842.0,0.14755149]
[1727991122170,0.002,60843.0,60842.0,0.082184]
[1727991122371,0.003,60843.0,60842.0,0.082184]
[1727991123065,0.001,60843.0,60842.0,0.082184]
[1727991123875,0.001,60843.0,60841.0,0.12]
[1727991124066,0.001,60843.0,60842.0,0.06537854]
[1727991124270,0.001,60843.0,60841.0,0.26756354]
[1727991124666,0.001,60843.0,60841.0,0.22902392]
[1727991124872,0.3608,60844.0,60842.0,0.06536833]
[1727991125167,0.001,60843.0,60842.0,0.06536833]
[1727991125972,0.001,60843.0,60841.0,0.22902392]
[1727991126877,0.3618,60844.0,60841.0,0.22902392]
[1727991127174,0.3618,60844.0,60842.0,0.06535643]
[1727991127871,0.001,60843.0,60842.0,0.06535643]
[1727991128472,0.001,60844.0,60842.0,0.06535643]
[1727991129668,0.001,60844.0,60841.0,0.22902392]
[1727991129669,0.001,60844.0,60841.0,0.29438035]
[1727991130176,0.442979,60846.0,60841.0,0.29438035]
[1727991130474,0.001,60843.0,60841.0,0.29438035]
[1727991130970,0.442979,60846.0,60841.0,0.29438035]
[1727991131171,0.001,60844.0,60841.0,0.29438035]
[1727991131567,0.001,60844.0,60841.0,0.22902392]
[1727991132874,0.442979,60846.0,60841.0,0.22902392]
[1727991133060,0.001,60843.0,60841.0,0.22902392]
[1727991133769,0.08464617,60845.0,60841.0,0.2780369]
[1727991133971,0.001,60844.0,60841.0,0.2780369]
[1727991134576,0.08464617,60845.0,60841.0,0.2780369]
[1727991134778,0.001,60843.0,60841.0,0.2780369]
[1727991136377,0.001,60844.0,60841.0,0.2780369]
[1727991137079,0.083181,60844.0,60841.0,0.1958519]
[1727991137263,0.001,60843.0,60841.0,0.1958519]
[1727991137976,0.082184,60842.0,60841.0,0.02683892]
[1727991138184,0.082185,60841.0,60837.0,0.06535643]
[1727991138368,0.001,60844.0,60840.0,0.04906493]
[1727991139280,0.001,60844.0,60841.0,0.04906493]
[1727991139575,0.082184,60842.0,60839.0,0.06535643]
[1727991139775,0.001,60843.0,60839.0,0.06535643]
[1727991139969,0.083182,60843.0,60842.0,0.04907228]
[1727991140277,0.12,60843.0,60841.0,0.04909013]
[1727991140470,0.082186,60840.0,60839.0,0.04909013]
[1727991140670,0.202186,60840.0,60839.0,0.04909013]
[1727991140873,0.082188,60839.0,60838.0,0.04909013]
[1727991141279,0.082192,60836.0,60835.0,0.06535643]
[1727991142168,0.12,60840.0,60834.0,0.38700647]
[1727991142368,0.082193,60835.0,60834.0,0.38700647]
[1727991142563,0.082193,60835.0,60834.0,0.02620647]
[1727991142763,0.082195,60834.0,60831.0,0.08187088]
[1727991143676,0.082195,60834.0,60830.0,0.443]
[1727991143677,0.082199,60831.0,60830.0,0.02672522]
[1727991143980,0.082203,60828.0,60827.0,0.06552507]
[1727991144177,0.082205,60826.0,60824.0,0.10082507]
[1727991144477,0.082205,60826.0,60824.0,0.12710799]
[1727991144872,0.082207,60825.0,60824.0,0.1271013]
[1727991145072,0.082207,60825.0,60824.0,0.06158292]
[1727991146372,0.082207,60825.0,60824.0,0.12706566]
[1727991146570,0.082207,60825.0,60824.0,0.06158292]
[1727991147073,0.083207,60825.0,60824.0,0.06158292]
[1727991148076,0.083207,60825.0,60824.0,0.02628292]
[1727991148077,0.084207,60825.0,60824.0,0.02628292]
[1727991148376,0.082212,60821.0,60820.0,0.12246617]
[1727991149683,0.084212,60821.0,60820.0,0.12246617]
[1727991149983,0.084212,60821.0,60820.0,0.1486435]
[1727991160387,0.084212,60821.0,60820.0,0.0286435]
[1727991160588,0.084212,60821.0,60814.0,0.04905927]
[1727991160589,0.49328,60820.0,60814.0,0.04905927]
[1727991160782,0.082232,60806.0,60805.0,0.0351]
[1727991160984,0.202232,60806.0,60805.0,0.0351]
[1727991162987,0.564032,60806.0,60805.0,0.0351]
[1727991163792,0.444032,60806.0,60805.0,0.0351]
[1727991163982,0.445032,60806.0,60805.0,0.0351]
[1727991165497,0.445032,60806.0,60805.0,0.06115688]
[1727991167001,0.565032,60806.0,60805.0,0.02605688]
[1727991167299,0.565032,60806.0,60798.0,0.11901006]
[1727991170011,0.565032,60806.0,60798.0,0.14530365]
[1727991170217,0.204232,60806.0,60798.0,0.14530365]
[1727991170396,0.565032,60806.0,60798.0,0.14530365]
[1727991171009,0.3628,60806.0,60800.0,0.12]
[1727991171203,0.3628,60806.0,60803.0,0.202236]
[1727991171511,0.3628,60806.0,60804.0,0.0325]
[1727991175113,0.002,60806.0,60804.0,0.0325]
[1727991180112,0.002,60806.0,60804.0,0.11437088]
[1727991181812,0.002,60806.0,60805.0,0.16410488]
[1727991182308,0.002,60806.0,60805.0,0.27274707]
[1727991182907,0.001,60806.0,60805.0,0.27274707]
[1727991183106,0.002,60806.0,60805.0,0.27274707]
[1727991183409,0.002,60806.0,60805.0,0.19087619]
[1727991183909,0.002,60806.0,60805.0,0.082234]
[1727991184310,0.002,60806.0,60805.0,0.27278234]
[1727991184705,0.002,60806.0,60805.0,0.27277322]
[1727991185204,0.002,60806.0,60805.0,0.19091169]
[1727991185405,0.122,60806.0,60805.0,0.10867769]
[1727991185604,0.122,60806.0,60804.0,0.0325]
[1727991186509,0.122,60806.0,60804.0,0.14162373]
[1727991186707,0.121,60806.0,60804.0,0.14162373]
[1727991186910,0.122,60806.0,60804.0,0.14162373]
[1727991187418,0.122,60806.0,60805.0,0.082234]
[1727991189223,0.121,60806.0,60805.0,0.10924473]
[1727991189403,0.122,60806.0,60805.0,0.19131135]
[1727991189604,0.121,60806.0,60805.0,0.19131135]
[1727991189919,0.122,60806.0,60805.0,0.19131135]
[1727991190218,0.122,60806.0,60805.0,0.10924473]
[1727991191812,0.122,60806.0,60804.0,0.02688973]
[1727991192015,0.122,60806.0,60801.0,0.082238]
[1727991192914,0.121,60806.0,60801.0,0.082238]
[1727991193120,0.122,60806.0,60801.0,0.082238]
[1727991193817,0.122,60806.0,60801.0,0.10397254]
[1727991197219,0.204233,60806.0,60801.0,0.02173454]
[1727991197419,0.204233,60806.0,60798.0,0.11891342]
[1727991197817,0.119,60802.0,60798.0,0.14143863]
[1727991198010,0.082234,60805.0,60798.0,0.14143863]
[1727991198209,0.12,60802.0,60798.0,0.05929227]
[1727991198619,0.12,60802.0,60798.0,0.14143863]
[1727991198816,0.12,60802.0,60801.0,0.09833037]
[1727991199016,0.12,60802.0,60801.0,0.20787017]
[1727991199217,0.12,60802.0,60801.0,0.1095398]
[1727991199413,0.12,60802.0,60801.0,0.20787017]
[1727991199818,0.121,60802.0,60801.0,0.20787017]
[1727991200126,0.121,60802.0,60801.0,0.1095398]
[1727991200423,0.122,60802.0,60801.0,0.1095398]
[1727991203415,0.122,60802.0,60801.0,0.10958343]
[1727991203616,0.122,60802.0,60801.0,0.2079138]
[1727991206923,0.122,60802.0,60801.0,0.10958343]
[1727991209029,0.204238,60802.0,60801.0,0.10958343]
[1727991209224,0.204238,60802.0,60801.0,0.19172946]
[1727991209722,0.082239,60801.0,60800.0,0.08214603]